fUSD/lending_fUSD_20260122
["ID","MTS","AMOUNT","RATE_DAILY","PERIOD"]
[403005590,1769044244905,-1000.0,0.00039621,5]
[403005591,1769044244915,-967.21699263,0.00039621,5]
[403005592,1769044244925,-1000.0,0.00039621,5]
[403005593,1769044244933,-1000.0,0.00039621,5]
[403005594,1769044244944,-1000.0,0.00039621,5]
[403005595,1769044244954,-1000.0,0.00039621,5]
[403005596,1769044244963,-1000.0,0.00039621,5]
[403005597,1769044244974,-874.53885875,0.00039621,5]
[403005598,1769044244983,-1000.0,0.00039621,5]
[403005599,1769044244993,-302.23335391,0.00039621,5]
[403005600,1769044245003,-839.46865055,0.00039621,5]
[403005601,1769044245012,-1000.0,0.00039621,5]
[403005602,1769044245027,-1000.0,0.00039621,2]
[403005603,1769044245036,-1000.0,0.00039621,5]
[403005604,1769044245045,-914.79153451,0.00039621,5]
[403005605,1769044245054,-1000.0,0.00039621,5]
[403005606,1769044245064,-506.19491637,0.00039621,5]
[403005607,1769044245073,-1000.0,0.00039621,5]
[403005608,1769044245082,-1002.75986784,0.00039621,5]
[403005609,1769044245091,-1000.0,0.00039621,5]
[403005610,1769044245101,-1000.0,0.00039621,5]
[403005611,1769044245111,-1000.0,0.00039621,3]
[403005612,1769044245120,-1000.0,0.00039621,5]
[403005613,1769044245130,-5800.0,0.00039621,14]
[403005614,1769044245140,-5800.0,0.00039628,14]
[403005615,1769044245151,-5800.0,0.00039636,14]
[403005616,1769044245160,-5800.0,0.00039644,14]
[403005617,1769044245306,-5800.0,0.00039645,14]
[403005618,1769044245315,-152.0,0.00039656,8]
[403005619,1769044245326,-232.13155181,0.00039656,5]
[403005620,1769044245335,-1955.16,0.00039684,2]
[403005621,1769044245345,-215.43,0.000397,14]
[403005622,1769044245354,-1000.0,0.00039726,14]
[403005623,1769044245363,-3400.0,0.000399,14]
[403005624,1769044245373,-513.26477135,0.0003995,120]
[403005625,1769044245384,-500.0,0.00039979,30]
[403005627,1769044245393,-80758.98906717,0.0003998,2]
[403005629,1769044245405,-500.0,0.0003998,120]
[403005631,1769044245414,-500.0,0.0003998,120]
[403005632,1769044245422,-500.0,0.0003998,120]
[403005633,1769044245431,-500.0,0.0003998,120]
[403005634,1769044245440,-151.0,0.00039997,14]
[403005635,1769044245449,-500.0,0.00039999,31]
[403005636,1769044245458,-218.34470897,0.00039999,31]
[403005637,1769044245467,-500.0,0.00039999,31]
[403005638,1769044245476,-500.0,0.00039999,31]
[403005639,1769044245485,-500.0,0.00039999,31]
[403005640,1769044245494,-500.0,0.00039999,31]
[403005641,1769044245503,-500.0,0.00039999,31]
[403005642,1769044245511,-500.0,0.00039999,31]
[403005643,1769044245520,-500.0,0.00039999,31]
[403005644,1769044245530,-322.33702711,0.00039999,31]
[403005645,1769044245539,-550.0,0.00039999,31]
[403005646,1769044245548,-332.20627617,0.00039999,31]
[403005647,1769044245557,-1000.0,0.0004,14]
[403005648,1769044245566,-160.0,0.0004,120]
[403005649,1769044245574,-616.18195335,0.0004,120]
[403005650,1769044245583,-13674.98936583,0.0004,4]
[403005651,1769044245593,-2299.99999009,0.0004,2]
[403005652,1769044245601,-388.88107663,0.0004,2]
[403005653,1769044245610,-1554.10990233,0.0004,2]
[403005654,1769044245619,-68999.999999,0.0004,20]
[403005655,1769044245628,-217.94971765,0.0004,2]
[403005656,1769044245637,-223.50152139,0.0004,2]
[403005657,1769044245646,-10112.48335244,0.0004,2]
[403005658,1769044245656,-255.02413674,0.0004,30]
[403005659,1769044245665,-313.61093686,0.0004,2]
[403005660,1769044245675,-10644.69410599,0.0004,2]
[403005661,1769044245684,-200.31396311,0.0004,2]
[403005662,1769044245694,-651.3652199,0.0004,30]
[403005663,1769044245703,-343.10549491,0.0004,2]
[403005664,1769044245712,-153.0,0.0004,120]
[403005665,1769044245721,-5003.93215783,0.0004,2]
[403005666,1769044245731,-580.0,0.0004,120]
[403005667,1769044245739,-200.2774,0.0004,10]
[403005668,1769044245748,-756.92326538,0.0004,120]
[403005669,1769044245758,-2641.93316149,0.0004,2]
[403005670,1769044245767,-5036.685999,0.0004,100]
[403005671,1769044245779,-1000.0,0.0004,30]
[403005672,1769044245789,-301.99,0.0004,120]
[403005673,1769044245798,-319.54,0.0004,120]
[403005674,1769044245807,-253.0,0.0004,30]
[403005675,1769044245816,-2000.0,0.0004,120]
[403005676,1769044245825,-500.0,0.00040031,30]
[403005677,1769044245834,-668.72714551,0.00040168,5]
[403005678,1769044245843,-1000.0,0.00040168,5]
[403005679,1769044245853,-1004.25799604,0.00040168,5]
[403005680,1769044245862,-1500.0,0.00040168,5]
[403005681,1769044245871,-1000.0,0.00040168,5]
[403005682,1769044245880,-1500.0,0.00040168,5]
[403005683,1769044245889,-1500.0,0.00040168,5]
[403005685,1769044245900,-1500.0,0.00040168,5]
[403005687,1769044245909,-1490.12416131,0.00040168,5]
[403005689,1769044245918,-1500.0,0.00040168,5]
[403005690,1769044245927,-1406.88061649,0.00040168,5]
[403005691,1769044245936,-1500.0,0.00040168,5]
[403005692,1769044245950,-1500.0,0.00040168,5]
[403005693,1769044245960,-1500.0,0.00040168,2]
[403005695,1769044245970,-1500.0,0.00040168,5]
[403005696,1769044245979,-1500.0,0.00040168,5]
[403005697,1769044245989,-1500.0,0.00040168,5]
[403005698,1769044245998,-609.10433484,0.00040168,5]
[403005699,1769044246007,-1500.0,0.00040168,5]
[403005700,1769044246019,-1015.6764546,0.00040168,3]
[403005701,1769044246028,-1242.98069302,0.00040168,5]
[403005702,1769044246037,-215.43,0.000402,14]
[403005703,1769044246047,-2624.38297788,0.00040214,15]
[403005704,1769044246060,-1359.1,0.0004025,120]
[403005705,1769044246079,-3866.34533145,0.00040263,15]
[403005706,1769044246100,-1000.0,0.00040274,14]
[403005707,1769044246110,-185.56,0.000403,14]
[403005708,1769044246119,-984.56,0.00040384,2]
[403005709,1769044246128,-612.13,0.00040384,2]
[403005710,1769044246138,-612.13,0.00040384,2]
[403005711,1769044246149,-606.6,0.00040384,2]
[403005712,1769044246160,-150.0,0.000404,22]
[403005713,1769044246180,-400.0,0.00040441,30]
[403005714,1769044246199,-400.0,0.00040441,30]
[403005715,1769044246210,-400.0,0.00040441,30]
[403005716,1769044246219,-459.6573462,0.00040441,30]
[403005717,1769044246229,-277.5991333,0.000405,120]
[403005718,1769044246239,-1000.0,0.000405,45]
[403005719,1769044246250,-1000.0,0.00040548,14]
[403005720,1769044246260,-151.84,0.00040578,120]
[403005721,1769044246271,-151.82,0.00040578,120]
[403005722,1769044246281,-160.0,0.000406,120]
[403005723,1769044246291,-153.0,0.000406,120]
[403005724,1769044246303,-151.84,0.00040678,120]
[403005725,1769044246312,-151.82,0.00040678,120]
[403005726,1769044246321,-215.43,0.000407,14]
[403005727,1769044246330,-151.0,0.00040713,14]
[403005728,1769044246340,-2000.0,0.00040716,5]
[403005729,1769044246349,-2000.0,0.00040716,5]
[403005730,1769044246358,-1705.53333266,0.00040716,5]
[403005731,1769044246367,-2000.0,0.00040716,5]
[403005732,1769044246376,-2000.0,0.00040716,5]
[403005733,1769044246385,-500.0,0.00040716,5]
[403005734,1769044246394,-2000.0,0.00040716,2]
[403005735,1769044246404,-2000.0,0.00040716,5]
[403005736,1769044246412,-2000.0,0.00040716,5]
[403005737,1769044246421,-506.56550873,0.00040716,5]
[403005738,1769044246431,-2000.0,0.00040716,5]
[403005739,1769044246440,-1000.0,0.0004075,50]
[403005740,1769044246449,-151.84,0.00040778,120]
[403005741,1769044246458,-151.82,0.00040778,120]
[403005742,1769044246466,-1229.69,0.00040795,2]
[403005743,1769044246475,-1229.69,0.00040795,2]
[403005744,1769044246484,-1229.69,0.00040795,2]
[403005745,1769044246494,-1229.69,0.00040795,2]
[403005746,1769044246503,-1229.69,0.00040795,2]
[403005747,1769044246512,-1212.84,0.00040795,2]
[403005748,1769044246521,-400.12,0.000408,30]
[403005749,1769044246531,-500.0,0.00040821,120]
[403005750,1769044246540,-500.0,0.00040821,120]
[403005751,1769044246549,-500.0,0.00040821,120]
[403005752,1769044246558,-500.0,0.00040821,120]
[403005753,1769044246567,-500.0,0.00040821,120]
[403005754,1769044246577,-177.17877412,0.00040821,120]
[403005755,1769044247203,-151.0,0.00038874,120]
[403005756,1769044247212,-322.82122588,0.00040821,120]
[403005757,1769044247229,-500.0,0.00040821,120]
[403005758,1769044247250,-1000.0,0.00040822,14]
[403005759,1769044247271,-101.95621045,0.00040838,71]
[403005760,1769044247282,-55.93850782,0.00040838,71]
[403005761,1769044247294,-255.18,0.00040842,2]
[403005762,1769044247305,-151.84,0.00040878,120]
[403005763,1769044247314,-151.82,0.00040878,120]
[403005764,1769044247323,-209.0,0.0004093,30]
[403005765,1769044247333,-210.0,0.0004093,30]
[403005766,1769044247343,-150.0,0.0004093,2]
[403005767,1769044247352,-150.0,0.0004093,2]
[403005768,1769044247362,-98.72007245,0.0004093,2]
[403005769,1769044247377,-51.27992755,0.0004093,2]
[403005770,1769044247386,-150.0,0.0004093,2]
[403005771,1769044247395,-280.0261206,0.00040968,120]
[403005772,1769044247406,-151.8413268,0.00040978,120]
[403005773,1769044247415,-151.87,0.00040978,120]
[403005774,1769044247424,-1249.53342353,0.00040998,2]
[403005775,1769044247442,-4057.68000001,0.00040998,2]
[403005776,1769044249564,-6564.0,0.0003493,2]
[403005777,1769044249574,-6564.0,0.0003793,2]
[403005778,1769044249584,-151.0,0.00038874,120]
[403005779,1769044249593,-151.0,0.00038913,120]
[403005780,1769044249603,-151.0,0.00038913,120]
[403005781,1769044249612,-151.0,0.00039016,120]
[403005782,1769044249621,-293.313721,0.00039016,120]
[403005783,1769044249631,-151.0,0.00039238,120]
[403005784,1769044249640,-151.0,0.0003949,120]
[403005785,1769044249649,-6564.0,0.0004093,2]
[403005786,1769044249658,-2282.91907022,0.00040998,2]
[403005787,1769044249668,-342.0,0.00041,30]
[403005788,1769044249677,-1500.0,0.00041,30]
[403005789,1769044249687,-162.43,0.00041,120]
[403005790,1769044249696,-500.0,0.00041,120]
[403005791,1769044249705,-500.0,0.00041,120]
[403005792,1769044249714,-7037.643526,0.00041,120]
[403005793,1769044249724,-1031.0,0.00041,10]
[403005794,1769044249733,-2000.0,0.00041,2]
[403005795,1769044249742,-500.0,0.00041,120]
[403005796,1769044249751,-253.0,0.00041,34]
[403005797,1769044249760,-170.0,0.00041,90]
[403005798,1769044249770,-200.0,0.00041,120]
[403005799,1769044249779,-24303.0,0.00041041,120]
[403005800,1769044249789,-151.0,0.00041051,120]
[403005801,1769044249798,-6480.54842453,0.00041059,2]
[403005802,1769044249810,-7887.11604352,0.00041059,2]
[403005803,1769044249826,-49608.39683299,0.00041059,2]
[403005804,1769044249837,-1082.94334132,0.00041059,2]
[403005805,1769044249848,-2948.89451746,0.00041059,2]
[403005806,1769044249859,-4141.776292,0.00041059,2]
[403005807,1769044249870,-4815.271,0.00041059,2]
[403005808,1769044249882,-7294.76997,0.00041059,2]
[403005809,1769044249893,-702.99048605,0.00041059,2]
[403005810,1769044249903,-347.03646083,0.00041068,120]
[403005811,1769044249912,-347.03646083,0.00041068,120]
[403005812,1769044249922,-274.8,0.00041068,120]
[403005813,1769044249932,-1359.1,0.0004107,120]
[403005814,1769044249941,-500.0,0.00041095,120]
[403005815,1769044249954,-509.0,0.00041095,120]
[403005816,1769044249964,-500.0,0.00041095,120]
[403005817,1769044249974,-500.0,0.00041095,120]
[403005818,1769044249983,-659.03659234,0.00041096,14]
[403005819,1769044249995,-340.96340766,0.00041096,14]
[403005820,1769044250006,-797.0,0.00041096,120]
[403005821,1769044250016,-222.58,0.00041096,120]
[403005822,1769044250028,-264.53,0.00041096,120]
[403005823,1769044250038,-225.580999,0.00041096,120]
[403005824,1769044250048,-225.580999,0.00041096,120]
[403005825,1769044250057,-225.580999,0.00041096,120]
[403005826,1769044250067,-225.580999,0.00041096,120]
[403005827,1769044250076,-225.580999,0.00041096,120]
[403005828,1769044250086,-225.580999,0.00041096,120]
[403005829,1769044250096,-225.580999,0.00041096,120]
[403005830,1769044250106,-225.580999,0.00041096,120]
[403005831,1769044250115,-225.580999,0.00041096,120]
[403005832,1769044250125,-225.580999,0.00041096,120]
[403005833,1769044250135,-225.580999,0.00041096,120]
[403005834,1769044250145,-225.580999,0.00041096,120]
[403005835,1769044250156,-225.580999,0.00041096,120]
[403005836,1769044250166,-225.580999,0.00041096,120]
[403005837,1769044250175,-225.580999,0.00041096,120]
[403005838,1769044250185,-225.580999,0.00041096,120]
[403005839,1769044250195,-225.580999,0.00041096,120]
[403005840,1769044250205,-225.580999,0.00041096,120]
[403005841,1769044250214,-225.580999,0.00041096,120]
[403005842,1769044250224,-225.580991,0.00041096,120]
[403005843,1769044250234,-150.0,0.00041096,60]
[403005844,1769044250244,-160.0,0.000411,120]
[403005845,1769044250253,-836.0,0.00041138,11]
[403005846,1769044250263,-3866.34533145,0.00041146,15]
[403005847,1769044250273,-153.61434258,0.00041151,60]
[403005848,1769044250284,-183.9,0.00041163,30]
[403005849,1769044250293,-150.0,0.00041163,30]
[403005850,1769044250302,-150.0,0.00041163,30]
[403005851,1769044250311,-153.0,0.000412,120]
[403005852,1769044250320,-215.43,0.000412,14]
[403005853,1769044250330,-151.0,0.00041261,14]
[403005854,1769044250339,-2500.0,0.00041264,10]
[403005855,1769044250349,-2500.0,0.00041264,10]
[403005856,1769044250358,-871.00530969,0.00041264,10]
[403005857,1769044250367,-2500.0,0.00041264,10]
[403005858,1769044250376,-2500.0,0.00041264,2]
[403005859,1769044250385,-2110.38834737,0.00041264,10]
[403005860,1769044250394,-2500.0,0.00041264,10]
[403005861,1769044250404,-2500.0,0.00041264,10]
[403005862,1769044250413,-765.31,0.00041283,120]
[403005863,1769044250423,-200.0,0.000413,21]
[403005864,1769044250431,-88.07328926,0.00041368,2]
[403005865,1769044250443,-911.92671074,0.00041368,2]
[403005866,1769044250452,-1000.0,0.0004137,30]
[403005867,1769044250461,-237.95728926,0.0004137,100]
[403005868,1769044250472,-491.99901574,0.0004137,100]
[403005869,1769044250481,-729.956305,0.0004137,100]
[403005870,1769044250490,-729.956305,0.0004137,100]
[403005871,1769044250499,-729.956305,0.0004137,100]
[403005872,1769044250507,-729.956305,0.0004137,100]
[403005873,1769044250516,-729.956305,0.0004137,100]
[403005874,1769044250525,-176.48918426,0.0004137,100]
[403005875,1769044250536,-553.46712074,0.0004137,100]
[403005876,1769044250545,-729.956305,0.0004137,100]
[403005877,1769044250554,-729.956305,0.0004137,100]
[403005878,1769044250562,-729.956305,0.0004137,100]
[403005879,1769044250572,-729.956305,0.0004137,100]
[403005880,1769044250581,-515.28765932,0.0004137,100]
[403005881,1769044250593,-214.66864568,0.0004137,100]
[403005882,1769044250602,-476.33510859,0.0004137,100]
[403005883,1769044250614,-253.62119641,0.0004137,100]
[403005884,1769044250623,-729.956305,0.0004137,100]
[403005885,1769044250633,-729.956305,0.0004137,100]
[403005886,1769044250643,-729.956305,0.0004137,100]
[403005887,1769044250652,-535.41988859,0.0004137,100]
[403005888,1769044250663,-194.53641641,0.0004137,100]
[403005889,1769044250673,-729.956305,0.0004137,100]
[403005890,1769044250682,-729.956305,0.0004137,100]
[403005891,1769044250691,-729.956307,0.0004137,100]
[403005892,1769044250700,-191.0,0.000414,24]
[403005893,1769044250710,-300.220525,0.00041417,106]
[403005894,1769044250720,-200.0,0.00041498,120]
[403005895,1769044250730,-16289.43527562,0.000415,20]
[403005896,1769044250741,-6988.5147958,0.000415,20]
[403005897,1769044250759,-2098.42028205,0.000415,20]
[403005898,1769044250771,-2403.45670468,0.000415,20]
[403005899,1769044250780,-500.0,0.000415,120]
[403005900,1769044250790,-500.0,0.000415,120]
[403005901,1769044250800,-163.0,0.00041553,11]
[403005902,1769044250809,-163.0,0.00041553,11]
[403005903,1769044250818,-836.0,0.00041553,11]
[403005904,1769044250829,-2624.38297788,0.00041564,15]
[403005905,1769044250838,-150.0,0.00041616,30]
[403005906,1769044250848,-1000.0,0.0004164,30]
[403005907,1769044250857,-797.0,0.00041644,120]
[403005908,1769044250867,-163.0,0.00041681,11]
[403005909,1769044250877,-160.0,0.000417,120]
[403005910,1769044250886,-215.43,0.000417,14]
[403005911,1769044250896,-836.0,0.00041713,11]
[403005912,1769044250905,-13.97572788,0.0004172,2]
[403005913,1769044250917,-166.90761372,0.0004172,2]
[403005914,1769044250926,-153.0,0.000418,120]
[403005915,1769044250935,-763.99837199,0.00041812,10]
[403005916,1769044251352,-904.167457,0.00038874,120]
[403005917,1769044251362,-55.20510051,0.00038913,120]
[403005918,1769044251373,-848.96235649,0.00038913,120]
[403005919,1769044251382,-505.72615765,0.00039016,120]
[403005920,1769044251393,-398.44129935,0.00039016,120]
[403005921,1769044251402,-2236.00162801,0.00041812,10]
[403005922,1769044251411,-760.76886052,0.00041812,10]
[403005923,1769044251421,-1000.0,0.00041812,10]
[403005924,1769044251431,-501.3483833,0.00041812,2]
[403005925,1769044251440,-3000.0,0.00041812,10]
[403005926,1769044251450,-2506.18405255,0.00041812,10]
[403005927,1769044251459,-163.0,0.00041846,11]
[403005928,1769044251471,-166.0,0.00041885,90]
[403005929,1769044251480,-1359.1,0.00041889,120]
[403005930,1769044251492,-151.0,0.00041897,14]
[403005931,1769044251502,-89843.44501773,0.000419,14]
[403005932,1769044251513,-1014.76659019,0.000419,120]
[403005933,1769044251524,-1014.76659019,0.000419,120]
[403005934,1769044251534,-1014.76659019,0.000419,120]
[403005935,1769044251543,-1014.76659019,0.000419,120]
[403005936,1769044251553,-1014.76659019,0.000419,120]
[403005937,1769044251561,-1014.76659019,0.000419,120]
[403005938,1769044251571,-1014.76659019,0.000419,120]
[403005939,1769044251580,-1014.76659019,0.000419,120]
[403005940,1769044251589,-1014.76659019,0.000419,120]
[403005941,1769044251599,-1014.76659019,0.000419,120]
[403005942,1769044251608,-315.61976021,0.000419,60]
[403005943,1769044251618,-1811.74,0.000419,120]
[403005944,1769044251627,-280.02612059,0.00041941,120]
[403005945,1769044251637,-5330.83761549,0.00042,20]
[403005946,1769044251649,-4309.56204036,0.00042,20]
[403005947,1769044251661,-443.58598797,0.00042,20]
[403005948,1769044251686,-467.97099624,0.00039238,120]
[403005949,1769044251697,-436.19646076,0.00039238,120]
[403005950,1769044251707,-63.80353924,0.00042,20]
[403005951,1769044251718,-255.53882337,0.00042,20]
[403005952,1769044251729,-801.04957216,0.00042,20]
[403005953,1769044252906,-675.64498993,0.00038874,120]
[403005954,1769044252965,-228.52246707,0.00038874,120]
[403005955,1769044252975,-904.167457,0.00038874,120]
[403005956,1769044252984,-904.167457,0.00038913,120]
[403005957,1769044252994,-904.167457,0.00039016,120]
[403005958,1769044253004,-904.167457,0.00039238,120]
[403005959,1769044253014,-904.167457,0.0003949,120]
[403005960,1769044253026,-904.167457,0.0003949,120]
[403005961,1769044253036,-1856.92780592,0.000414,2]
[403005962,1769044253045,-1856.92780591,0.00041703,2]
[403005963,1769044253056,-73225.29996406,0.00042,20]
[403005964,1769044253068,-26139.05245135,0.00042,20]
[403005965,1769044253078,-704.56799762,0.00042,120]
[403005966,1769044253793,-528.39518404,0.0003493,2]
[403005967,1769044253833,-50.22781596,0.0003493,2]
[403005968,1769044253842,-904.167457,0.00038874,120]
[403005969,1769044253852,-792.4097332,0.00038913,120]
[403005970,1769044643139,154.01480946,0.000226,120]
[403005971,1769045209184,-298.47235783,0.00017999,2]
[403005972,1769045209213,-501.59915555,0.00017999,2]
[403005973,1769045209242,-214.76529765,0.00017999,2]
[403005974,1769045209271,-48985.16318897,0.00018,2]
[403005975,1769045210469,-50000.0,0.00018,2]
[403005976,1769045211271,-50000.0,0.00018,2]
[403005977,1769045212005,-50000.0,0.00018,2]
[403005978,1769045212747,-50000.0,0.00018,2]
[403005979,1769045214383,-50000.0,0.00018,2]
[403005980,1769045215147,-50000.0,0.00018,2]
[403005981,1769045215215,-50000.0,0.00018,2]
[403005982,1769045216008,-50000.0,0.00018,2]
[403005983,1769045216421,-50000.0,0.00018,2]
[403005984,1769045216962,-50000.0,0.00018,2]
[403005985,1769045217995,-50000.0,0.00018,2]
[403005986,1769045218631,-50000.0,0.00018,2]
[403005987,1769045225371,-50000.0,0.00018,2]
[403005988,1769045226703,-50000.0,0.00018,2]
[403006002,1769045431993,-160.0,0.00017,2]
[403006003,1769045432002,-412.0,0.00017998,2]
[403006004,1769045432016,-481.17189352,0.00017999,2]
[403006005,1769045432026,-152.84129628,0.00017999,2]
[403006006,1769045432036,-165.54162576,0.00017999,2]
[403006007,1769045432045,-500.0,0.00017999,2]
[403006008,1769045432055,-500.0,0.00017999,2]
[403006009,1769045432064,-470.76384506,0.00017999,2]
[403006010,1769045432073,-154.82499071,0.00017999,2]
[403006011,1769045432083,-500.0,0.00017999,2]
[403006012,1769045432093,-500.0,0.00017999,2]
[403006014,1769045432102,-153.08314089,0.00017999,2]
[403006016,1769045432111,-386.06096785,0.00018,2]
[403006018,1769045432120,-439.09687396,0.00018,2]
[403006021,1769045432143,-41241.02057204,0.00018,2]
[403006057,1769045438077,-10497.25482916,0.00018,2]
[403006058,1769045438089,-6756.13557786,0.00018,2]
[403006059,1769045438100,-30952.45795993,0.00018,2]
[403006060,1769045438111,-651.65853637,0.00018,2]
[403006061,1769045438123,-2771.78786465,0.00018,2]
[403006062,1769045438191,-651.0,0.00018,2]
[403006094,1769045439956,-1730.84596,0.00018,2]
[403006095,1769045440064,-11298.8378784,0.00018,2]
[403006096,1769045440075,-2218.04471527,0.00018,2]
[403006097,1769045440085,-990.88773711,0.00018,2]
[403006109,1769045443326,-854.75204517,0.00018,2]
[403006110,1769045443338,-426.03728615,0.00018,2]
[403006116,1769045443589,-364.47543328,0.00018,2]
[403006120,1769045445904,-2608.63388952,0.00018,2]
[403006124,1769045536839,500.0,0.000176,30]
[403006125,1769045537326,511.33419221,0.00015538,10]
[403006126,1769045541384,810.0,0.000176,30]
[403006130,1769045846176,500.0,0.000176,30]
[403006131,1769045850062,504.17950708,0.000176,30]
[403006169,1769046631858,-606.48713533,0.0001764,2]
[403006170,1769046631913,-1090.12212718,0.0001764,2]
[403006171,1769046631922,-151.0,0.00017775,2]
[403006172,1769046631931,-151.0,0.00017783,2]
[403006173,1769046631940,-151.0,0.00017797,2]
[403006174,1769046631950,-150.00089812,0.00017807,2]
[403006175,1769046631958,-800.0,0.000179,6]
[403006176,1769046631967,-167.93015356,0.000179,2]
[403006177,1769046631986,-2188.3112201,0.000179,2]
[403006178,1769046631995,-151.0,0.00017997,2]
[403006179,1769046632005,-550.0,0.00017998,2]
[403006180,1769046632014,-36.19970988,0.00017998,2]
[403006181,1769046632025,-263.80029012,0.00017998,2]
[403006182,1769046632035,-320.99926093,0.00017998,2]
[403006183,1769046632046,-441.00073907,0.00017998,2]
[403006184,1769046632055,-218.14497923,0.00017999,2]
[403006185,1769046632066,-281.85502077,0.00017999,2]
[403006186,1769046632075,-293.73265793,0.00017999,2]
[403006187,1769046632086,-211.33292951,0.00017999,2]
[403006188,1769046632095,-292.09440994,0.00017999,2]
[403006189,1769046632107,-83.93859055,0.00017999,2]
[403006190,1769046632117,-510.69128535,0.00017999,2]
[403006191,1769046632126,-87.32704338,0.00017999,2]
[403006192,1769046632140,-3319.05595662,0.00017999,2]
[403006193,1769046632149,-268.842,0.00017999,2]
[403006194,1769046632158,-508.4911337,0.00017999,2]
[403006195,1769046632167,-500.0,0.00017999,2]
[403006196,1769046632176,-500.0,0.00017999,2]
[403006198,1769046632185,-506.74960856,0.00017999,2]
[403006200,1769046632194,-516.30828692,0.00017999,2]
[403006201,1769046632202,-501.06301241,0.00017999,2]
[403006202,1769046632211,-630.59228613,0.00017999,2]
[403006203,1769046632221,-500.0,0.00017999,2]
[403006204,1769046632231,-500.0,0.00017999,2]
[403006205,1769046632240,-506.06325218,0.00017999,2]
[403006206,1769046632249,-502.63945044,0.00017999,2]
[403006207,1769046632258,-506.00197272,0.00017999,2]
[403006208,1769046632269,-506.49597798,0.00017999,2]
[403006209,1769046632278,-510.43874012,0.00017999,2]
[403006210,1769046632287,-500.0,0.00017999,2]
[403006211,1769046632296,-510.34248785,0.00017999,2]
[403006212,1769046632306,-202.12,0.00017999,2]
[403006213,1769046632316,-500.0,0.00017999,2]
[403006214,1769046632326,-22.44071626,0.00017999,2]
[403006215,1769046632338,-477.55928374,0.00017999,2]
[403006216,1769046632347,-500.0,0.00017999,2]
[403006217,1769046632356,-500.0,0.00017999,2]
[403006218,1769046632365,-500.0,0.00017999,2]
[403006219,1769046632375,-500.0,0.00017999,2]
[403006220,1769046632385,-500.0,0.00017999,2]
[403006221,1769046632395,-308.37179326,0.00017999,2]
[403006222,1769046632406,-191.62820674,0.00017999,2]
[403006223,1769046632415,-370.62179226,0.00017999,2]
[403006224,1769046632528,-129.37820774,0.00017999,2]
[403006225,1769046632538,-500.0,0.00017999,2]
[403006226,1769046632548,-500.0,0.00017999,2]
[403006227,1769046632557,-500.0,0.00017999,2]
[403006228,1769046632567,-500.0,0.00017999,2]
[403006229,1769046632577,-500.0,0.00017999,2]
[403006230,1769046632586,-500.0,0.00017999,2]
[403006231,1769046632600,-500.0,0.00017999,2]
[403006232,1769046632610,-500.0,0.00017999,2]
[403006233,1769046632619,-500.0,0.00017999,2]
[403006234,1769046632628,-500.0,0.00017999,2]
[403006235,1769046632639,-500.0,0.00017999,2]
[403006236,1769046632648,-500.0,0.00017999,2]
[403006237,1769046632657,-500.0,0.00017999,2]
[403006238,1769046632667,-500.0,0.00017999,2]
[403006239,1769046632677,-500.0,0.00017999,2]
[403006240,1769046632686,-500.0,0.00017999,2]
[403006241,1769046632695,-500.0,0.00017999,2]
[403006242,1769046632704,-500.0,0.00017999,2]
[403006243,1769046632713,-500.0,0.00017999,2]
[403006244,1769046632723,-231.65119137,0.00017999,2]